lending/lending_fUSD_20260209
["ID","MTS","AMOUNT","RATE_DAILY","PERIOD"]
[404838097,1770610241816,-141726.66314333,0.00044449,54]
[404838098,1770610241825,-1510.41077862,0.0004445,120]
[404838099,1770610241834,-1151932.97275206,0.0004445,10]
[404838100,1770610241864,-500.0,0.00044356,120]
[404838101,1770610241874,-65.36964925,0.00044356,120]
[404838102,1770610241896,-294.02905022,0.00044356,120]
[404838103,1770610241907,-140.60130053,0.00044356,120]
[404838104,1770610241916,-500.0,0.00044356,120]
[404838105,1770610241926,-1420682.3565534,0.0004445,10]
[404838112,1770610243703,-265.96317684,0.00040548,2]
[404838113,1770610243717,-522.24219962,0.00040548,2]
[404838114,1770610243728,-211.79462354,0.00040548,2]
[404838115,1770610243737,-2500.0,0.0004274,7]
[404838116,1770610243747,-500.0,0.00044356,120]
[404838117,1770610243755,-227.3751323,0.00044356,120]
[404838118,1770610243768,-272.6248677,0.00044356,120]
[404838119,1770610243778,-415.75384191,0.00044356,120]
[404838120,1770610243787,-641722.62129031,0.0004445,10]
[404838123,1770610245890,-6019.9928199,0.0004445,10]
[404838124,1770610245941,-1713.17875258,0.0004445,10]
[404838127,1770610508206,1200.80286715,0.00034765,30]
[404838128,1770610508262,1200.80286715,0.00034765,30]
[404838129,1770610547343,500.0,0.00034765,60]
[404838130,1770610547581,497.43493512,0.00034765,60]
[404838131,1770610623895,195.0,0.00032466,120]
[404838132,1770610624008,195.0,0.0003267,120]
[404838133,1770610624128,328.06,0.0003267,120]
[404838134,1770610669089,500.0,0.00034765,60]
[404838135,1770610669353,433.48116845,0.00034765,60]
[404838137,1770610892306,178.705,0.00034368,38]
[404838138,1770610892350,2073.736,0.00034368,38]
[404838139,1770610983999,195.0,0.00033646,120]
[404838140,1770611107724,6023.74206612,0.00018,2]
[404838141,1770611107755,1091126.83344668,0.00018,2]
[404838142,1770611124614,631.88711744,0.000108,2]
[404838143,1770611163297,9443.90117841,0.00011,2]
[404838144,1770611165427,222.29582107,0.00018,2]
[404838145,1770611165522,929.6156132,0.00018,2]
[404838146,1770611165572,1743.9128987,0.00018,2]
[404838147,1770611165618,1274.66618866,0.00018,2]
[404838148,1770611271253,433056.69593501,0.00018,2]
[404838149,1770611271278,676000.0,0.00018,2]
[404838150,1770611272832,207.41,0.00035616,30]
[404838151,1770611277947,500.0,0.00034765,60]
[404838152,1770611278205,506.382575,0.00034765,60]
[404838153,1770611283830,4800.0,0.00035616,30]
[404838154,1770611287859,200.0,0.000178,6]
[404838155,1770611289944,500.0,0.000179,6]
[404838156,1770611290547,-300.0,0.00017999,2]
[404838157,1770611302791,356.405863,0.00017909,2]
[404838158,1770611304507,500.0,0.00034765,60]
[404838159,1770611341192,300.0,0.00017999,2]
[404838160,1770611401134,300.0,0.00017999,2]
[404838161,1770611401201,1200.0,0.00017999,2]
[404838162,1770611401560,550.0,0.00017999,2]
[404838163,1770611401980,300.0,0.00017999,2]
[404838164,1770611403606,3776.48728256,0.000179,2]
[404838165,1770611405535,500.0,0.00034765,30]
[404838166,1770611405766,500.0,0.00034765,30]
[404838167,1770611406001,500.0,0.00034765,30]
[404838168,1770611406236,500.0,0.00034765,30]
[404838169,1770611406468,500.0,0.00034765,30]
[404838170,1770611406664,248.32048443,0.00035616,30]
[404838171,1770611406714,500.0,0.00034765,30]
[404838172,1770611407288,500.0,0.00034765,30]
[404838173,1770611407552,500.0,0.00034765,30]
[404838174,1770611407815,500.0,0.00034765,30]
[404838175,1770611408054,281.16658978,0.00034765,30]
[404838185,1770611432058,-198.93640224,0.00018,2]
[404838187,1770611432068,-250.0,0.00018,2]
[404838189,1770611432077,-302.13678667,0.00018,2]
[404838191,1770611432086,-49419.22767911,0.00018,2]
[404838192,1770611432098,-11020.86862714,0.00018,2]
[404838193,1770611432220,-2371.5,0.00018,2]
[404838194,1770611432231,-443.20529259,0.00018,2]
[404838195,1770611438145,-1340.26945483,0.00018,2]
[404838196,1770611438200,-2917.23725286,0.00018,2]
[404838197,1770611438212,-651.0,0.00018,2]
[404838198,1770611438224,-1339086.75032916,0.00018,2]
[404838199,1770611438234,-245.69,0.00018,2]
[404838200,1770611438243,-304.0,0.00018,2]
[404838201,1770611438253,-2444.75313959,0.0001813,2]
[404838202,1770611438263,-1145.84487387,0.00019,2]
[404838203,1770611438272,-935.0,0.00019079,2]
[404838204,1770611438283,-200.23286085,0.00019082,2]
[404838205,1770611438293,-2444.75313959,0.00019398,2]
[404838206,1770611438302,-420.0,0.00019639,2]
[404838207,1770611438312,-614.00368243,0.00019699,2]
[404838208,1770611438321,-1680.0,0.00019735,2]
[404838209,1770611438331,-250.0,0.00019799,2]
[404838210,1770611438341,-385.99353041,0.00019799,2]
[404838211,1770611438351,-195.0,0.00019799,2]
[404838212,1770611438361,-250.0,0.00019799,2]
[404838213,1770611438371,-300.0,0.00019799,2]
[404838214,1770611438381,-2444.75313959,0.00020667,2]
[404838215,1770611438391,-48810.72458322,0.00021,2]
[404838216,1770611438401,-614.00368235,0.00021351,2]
[404838217,1770611438411,-587.0,0.00021428,2]
[404838218,1770611438421,-3776.48728256,0.000215,2]
[404838220,1770611438430,-2351.0,0.00021639,2]
[404838221,1770611438439,-2444.75313959,0.00021936,2]
[404838222,1770611438449,-614.00368235,0.00023003,2]
[404838223,1770611438459,-2444.75313959,0.00023205,2]
[404838224,1770611438469,-528.0,0.00023381,2]
[404838225,1770611438479,-3292.0,0.00023727,2]
[404838226,1770611438489,-602.3357275,0.00024099,2]
[404838227,1770611438498,-176691.92163685,0.000241,2]
[404838228,1770611438508,-614.00368235,0.00024654,2]
[404838229,1770611438517,-3776.48728256,0.000251,2]
[404838230,1770611438528,-2444.75313959,0.00025742,2]
[404838231,1770611438538,-4609.0,0.00026016,2]
[404838232,1770611438547,-614.00368235,0.00026306,2]
[404838233,1770611438557,-306.08,0.00026866,2]
[404838234,1770611438566,-500.0,0.00027429,2]
[404838235,1770611438576,-202.0,0.00027429,2]
[404838236,1770611438585,-421.0,0.00027429,2]
[404838237,1770611438594,-280.0,0.00027429,2]
[404838238,1770611438604,-614.00368235,0.00027958,2]
[404838239,1770611438615,-2444.75313959,0.0002828,2]
[404838240,1770611438625,-4246.0,0.00028526,2]
[404838241,1770611438635,-3776.48728256,0.000287,2]
[404838242,1770611438645,-2444.75313959,0.00029549,2]
[404838243,1770611438654,-614.00368235,0.0002961,2]
[404838244,1770611438669,-507.13646079,0.0003013,2]
[404838245,1770611438679,-5000.0,0.00030328,2]
[404838246,1770611438689,-692.2,0.00030587,2]
[404838247,1770611438700,-228.85,0.000306,2]
[404838248,1770611438710,-2444.75313959,0.00030817,2]
[404838249,1770611438721,-187.24,0.000311,2]
[404838250,1770611438731,-160.0,0.0003115,2]
[404838251,1770611438740,-1479.11165976,0.0003121,2]
[404838252,1770611438750,-614.00368235,0.00031261,2]
[404838253,1770611438760,-183.14,0.00031754,3]
[404838254,1770611438769,-692.2,0.00031847,2]
[404838255,1770611438779,-2444.75313959,0.00032086,2]
[404838256,1770611438790,-3776.48728256,0.000323,2]
[404838257,1770611438800,-500.0,0.00032416,2]
[404838258,1770611438809,-2049.54141744,0.000325,2]
[404838259,1770611438819,-550.90136734,0.000325,2]
[404838260,1770611438830,-4019.5163021,0.000325,2]
[404838261,1770611438840,-3500000.0,0.00032515,2]
[404838262,1770611438850,-1300.0,0.000326,11]
[404838263,1770611438861,-511.0,0.00032616,2]
[404838264,1770611438871,-2700.0,0.000327,11]
[404838265,1770611438880,-800.0,0.000327,11]
[404838266,1770611438890,-4000.0,0.000328,11]
[404838267,1770611438900,-1100.0,0.000328,11]
[404838268,1770611438909,-5400.0,0.000329,12]
[404838269,1770611438918,-1400.0,0.000329,12]
[404838270,1770611438928,-614.00368235,0.00032913,2]
[404838271,1770611438937,-578.68,0.00032967,20]
[404838272,1770611438948,-9999.99,0.00033038,2]
[404838273,1770611438958,-662.14,0.00033038,2]
[404838274,1770611438967,-150.99,0.00033038,2]
[404838275,1770611438976,-439.35,0.00033038,2]
[404838276,1770611438986,-692.2,0.00033107,2]
[404838277,1770611438995,-150.0,0.00033629,2]
[404838278,1770611439004,-612.74,0.00033739,2]
[404838279,1770611439014,-200.0,0.00033929,2]
[404838280,1770611439024,-1852.42,0.00034002,2]
[404838281,1770611439034,-1000.0,0.00034072,2]
[404838282,1770611439043,-1222.52,0.000342,2]
[404838283,1770611439058,-692.2,0.00034368,5]
[404838284,1770611439068,-29750.27894329,0.00034499,2]
[404838285,1770611439078,-221.80362856,0.00034565,7]
[404838286,1770611439088,-614.00368235,0.00034565,2]
[404838287,1770611439098,-4019.51630208,0.0003462,2]
[404838288,1770611439107,-2444.75313959,0.00034624,2]
[404838289,1770611439117,-151.28011217,0.00034665,20]
[404838290,1770611439126,-194.61,0.000347,14]
[404838291,1770611439136,-7814.7,0.000347,2]
[404838292,1770611439145,-419.16544585,0.00034765,19]
[404838293,1770611439154,-336.83,0.000348,2]
[404838294,1770611439164,-29750.27894321,0.00035459,2]
[404838295,1770611439173,-678.48627921,0.0003561,2]
[404838296,1770611439182,-252.94032068,0.00035616,7]
[404838297,1770611439191,-692.2,0.00035628,7]
[404838298,1770611439200,-544.94,0.00035732,2]
[404838299,1770611439210,-2444.75313959,0.00035893,2]
[404838300,1770611439219,-3776.48728256,0.000359,2]
[404838301,1770611439229,-150.0,0.00035958,2]
[404838302,1770611439238,-150.0,0.00035958,2]
[404838303,1770611439248,-150.0,0.00036013,2]
[404838304,1770611439257,-253.69312086,0.00036068,2]
[404838305,1770611439267,-223.12649593,0.00036236,7]
[404838306,1770611439276,-29750.27894321,0.0003642,2]
[404838307,1770611439285,-4019.51630208,0.0003674,2]
[404838308,1770611439295,-5359.0,0.000368,3]
[404838309,1770611439304,-692.2,0.00036888,7]
[404838310,1770611439314,-57286.12636477,0.00036888,60]
[404838311,1770611439323,-29750.27894321,0.0003738,2]
[404838312,1770611439333,-5529.0,0.000376,5]
[404838313,1770611439343,-692.2,0.00038148,30]
[404838314,1770611439353,-1000.0,0.00038331,2]
[404838315,1770611439362,-29750.27894321,0.0003834,2]
[404838316,1770611439371,-250.0,0.00038356,120]
[404838317,1770611439381,-250.0,0.00038356,120]
[404838318,1770611439390,-250.0,0.00038356,120]
[404838319,1770611439400,-250.0,0.00038356,120]
[404838320,1770611439409,-250.0,0.00038356,120]
[404838321,1770611439418,-250.0,0.00038356,120]
[404838322,1770611439428,-250.0,0.00038356,120]
[404838323,1770611439438,-169.800804,0.00038356,120]
[404838324,1770611439447,-7814.7,0.000384,2]
[404838325,1770611439456,-306.08,0.00038424,14]
[404838326,1770611439465,-2049.54141744,0.00038425,2]
[404838327,1770611439475,-550.90136733,0.00038425,2]
[404838328,1770611439484,-4019.51630208,0.0003886,2]
[404838329,1770611439493,-6800.0,0.000389,14]
[404838330,1770611439504,-1295.73873761,0.00039,120]
[404838331,1770611439513,-29750.27894321,0.00039301,2]
[404838332,1770611439523,-692.2,0.00039408,30]
[404838333,1770611439531,-3776.48728256,0.000395,2]
[404838334,1770611439541,-168.0,0.0003956,2]
[404838335,1770611439550,-168.0,0.00039569,2]
[404838336,1770611439559,-168.0,0.00039875,7]
[404838337,1770611439568,-168.0,0.0003992,2]
[404838338,1770611439578,-15663.13,0.00039951,2]
[404838339,1770611439587,-323.26075896,0.00039975,2]
[404838340,1770611439597,-505.23042073,0.00039996,2]
[404838341,1770611439610,-550.22,0.0004,120]
[404838342,1770611439620,-203.46,0.0004,120]
[404838343,1770611439631,-274.48,0.0004,120]
[404838344,1770611439640,-152.0,0.0004,120]
[404838345,1770611439649,-500.0,0.0004,5]
[404838346,1770611439659,-500.0,0.0004,5]
[404838347,1770611439668,-541.85466405,0.0004,5]
[404838348,1770611439677,-500.0,0.0004,5]
[404838349,1770611439686,-500.0,0.0004,5]
[404838350,1770611439695,-170.50126432,0.0004,5]
[404838351,1770611439704,-500.0,0.0004,5]
[404838352,1770611439714,-500.0,0.0004,2]
[404838353,1770611439724,-500.0,0.0004,5]
[404838354,1770611439733,-500.0,0.0004,5]
[404838355,1770611439742,-544.38936191,0.0004,5]
[404838356,1770611439751,-1042.66,0.0004,30]
[404838357,1770611439762,-500.0,0.0004,5]
[404838358,1770611439772,-5000.0,0.0004,3]
[404838359,1770611439790,-150.63279502,0.0004,30]
[404838360,1770611439800,-10893.3127493,0.0004,120]
[404838361,1770611439809,-162.65190433,0.0004,5]
[404838362,1770611439818,-500.0,0.0004,5]
[404838363,1770611439829,-500.0,0.0004,5]
[404838364,1770611439839,-500.0,0.0004,5]
[404838365,1770611439849,-500.0,0.0004,5]
[404838366,1770611439860,-500.0,0.0004,2]
[404838367,1770611439869,-500.0,0.0004,5]
[404838368,1770611439879,-500.0,0.0004,5]
[404838369,1770611439888,-500.0,0.0004,5]
[404838370,1770611439900,-500.0,0.0004,5]
[404838371,1770611439909,-500.0,0.0004,5]
[404838372,1770611439920,-500.30350429,0.0004,5]
[404838373,1770611439929,-500.0,0.0004,5]
[404838374,1770611439938,-500.0,0.0004,5]
[404838375,1770611439949,-448.66891635,0.0004,5]
[404838376,1770611439958,-260.08886255,0.0004,5]
[404838377,1770611439968,-500.0,0.0004,5]
[404838378,1770611439977,-491.56017181,0.0004,5]
[404838379,1770611439985,-460.71375774,0.0004,5]
[404838380,1770611439995,-245.6057209,0.0004,5]
[404838381,1770611440008,-500.0,0.0004,5]
[404838383,1770611440018,-500.78823516,0.0004,5]
[404838385,1770611440028,-500.0,0.0004,5]
[404838388,1770611440040,-166.95992965,0.0004,5]
[404838390,1770611440050,-500.0,0.0004,5]
[404838392,1770611440060,-500.0,0.0004,5]
[404838393,1770611440069,-150.0,0.00040009,7]
[404838394,1770611440079,-150.0,0.00040009,7]
[404838395,1770611440088,-150.0,0.00040009,7]
[404838396,1770611440098,-150.0,0.00040009,7]
[404838397,1770611440107,-150.0,0.00040009,7]
[404838398,1770611440117,-150.0,0.00040009,7]
[404838399,1770611440126,-35794.0,0.00040252,2]
[404838400,1770611440135,-29750.27894321,0.00040261,15]
[404838401,1770611440144,-1042.66,0.00040274,30]
[404838402,1770611440153,-150.0,0.00040414,7]
[404838403,1770611440162,-168.0,0.00040475,2]
[404838404,1770611440171,-168.0,0.00040499,2]
[404838405,1770611440180,-1000.0,0.00040548,5]
[404838406,1770611440189,-227.66530803,0.00040548,5]
[404838407,1770611440198,-501.05560458,0.00040548,5]
[404838408,1770611440208,-1000.0,0.00040548,5]
[404838409,1770611440217,-1000.0,0.00040548,5]
[404838410,1770611440227,-1000.0,0.00040548,2]
[404838411,1770611440236,-1005.82893867,0.00040548,5]
[404838412,1770611440245,-501.47083353,0.00040548,5]
[404838413,1770611440254,-1000.69918339,0.00040548,5]
[404838414,1770611440263,-1000.0,0.00040548,5]
[404838415,1770611440273,-1000.66593252,0.00040548,5]
[404838416,1770611440282,-1002.54234669,0.00040548,5]
[404838417,1770611440292,-208.13539422,0.00040548,5]
[404838418,1770611440303,-1005.4959813,0.00040548,2]
[404838419,1770611440314,-1003.87713345,0.00040548,5]
[404838420,1770611440324,-1000.0,0.00040548,5]
[404838421,1770611440335,-1000.0,0.00040548,5]
[404838422,1770611440345,-1000.0,0.00040548,5]
[404838423,1770611440354,-1002.44563879,0.00040548,5]
[404838424,1770611440364,-157.67351188,0.00040548,5]
[404838425,1770611440375,-1000.0,0.00040548,5]
[404838426,1770611440385,-500.48740819,0.00040548,5]
[404838427,1770611440401,-1000.0,0.00040548,5]
[404838428,1770611440410,-1000.0,0.00040548,5]
[404838429,1770611440421,-1000.0,0.00040548,5]
[404838430,1770611440430,-431.50854257,0.00040548,5]
[404838431,1770611440439,-1000.0,0.00040548,2]
[404838432,1770611440452,-1042.66,0.00040548,30]
[404838433,1770611440461,-155.43779381,0.00040548,2]
[404838434,1770611440470,-692.2,0.00040668,120]
[404838435,1770611440480,-168.0,0.0004081,2]
[404838436,1770611440490,-150.0,0.00040818,7]
[404838437,1770611440501,-1042.66,0.00040822,30]
[404838438,1770611440511,-1079.4,0.00040836,120]
[404838439,1770611440520,-2444.75313959,0.00040968,2]
[404838440,1770611440533,-4019.51630208,0.0004098,2]
[404838441,1770611440543,-567.032031,0.00041,30]
[404838442,1770611440553,-152.0,0.00041,120]
[404838443,1770611440564,-1079.4,0.00041029,120]
[404838444,1770611440580,-168.0,0.00041065,7]
[404838445,1770611440590,-239.38,0.00041096,120]
[404838446,1770611440601,-234.34,0.00041096,120]
[404838448,1770611440610,-1001.70650637,0.00041096,10]
[404838450,1770611440619,-1500.0,0.00041096,10]
[404838452,1770611440629,-1500.0,0.00041096,10]
[404838454,1770611440638,-653.13192661,0.00041096,2]
[404838456,1770611440647,-501.26387074,0.00041096,10]
[404838458,1770611440657,-1500.0,0.00041096,10]
[404838460,1770611440666,-1502.31857723,0.00041096,10]
[404838462,1770611440676,-1002.57509796,0.00041096,10]
[404838464,1770611440685,-1500.0,0.00041096,10]
[404838466,1770611440697,-1500.0,0.00041096,10]
[404838468,1770611440707,-425.72512087,0.00041096,10]
[404838470,1770611440716,-314.04026957,0.00041096,10]
[404838472,1770611440725,-1042.66,0.00041096,30]
[404838474,1770611440735,-7814.7,0.000411,2]
[404838476,1770611440744,-306.08,0.00041115,14]
[404838478,1770611440753,-150.0,0.00041121,30]
[404838480,1770611440768,-150.0,0.00041121,30]
[404838481,1770611440778,-168.0,0.00041189,2]
[404838482,1770611440795,-29750.27894321,0.00041221,15]
[404838483,1770611440805,-150.0,0.00041222,30]
[404838484,1770611440814,-1079.4,0.00041222,120]
[404838485,1770611440824,-1042.66,0.0004137,30]
[404838486,1770611440834,-1079.4,0.00041415,120]
[404838487,1770611440843,-168.0,0.00041462,2]
[404838488,1770611440852,-150.0,0.00041491,30]
[404838489,1770611440862,-150.0,0.00041491,30]
[404838490,1770611440872,-1079.4,0.00041608,120]
[404838491,1770611440881,-150.0,0.00041626,30]
[404838492,1770611440890,-2000.0,0.00041644,10]
[404838493,1770611440900,-475.51068713,0.00041644,10]
[404838494,1770611440909,-2000.0,0.00041644,10]
[404838495,1770611440918,-453.97092283,0.00041644,10]
[404838496,1770611440928,-2000.0,0.00041644,10]
[404838497,1770611441118,-1042.66,0.00041644,30]
[404838498,1770611441158,-3256.0,0.0004177,2]
[404838499,1770611441169,-1234.285,0.0004177,2]
[404838500,1770611441178,-1079.4,0.00041801,120]
[404838501,1770611441187,-1042.68268303,0.00041918,30]
[404838502,1770611441196,-692.2,0.00041929,120]
[404838503,1770611441205,-168.0,0.00041987,7]
[404838504,1770611441215,-1079.4,0.00041994,120]
[404838505,1770611441223,-152.0,0.00042,120]
[404838506,1770611441233,-1012.1268749,0.00042,120]
[404838507,1770611441242,-151.38916921,0.00042,30]
[404838508,1770611441251,-150.0,0.0004203,30]
[404838509,1770611441260,-29750.27894321,0.00042182,15]
[404838510,1770611441269,-1079.4,0.00042187,120]
[404838511,1770611441278,-2500.0,0.00042192,10]
[404838512,1770611441288,-1002.336663,0.00042192,10]
[404838513,1770611441298,-2512.94110038,0.00042192,10]
[404838514,1770611441308,-150.0,0.00042232,30]
[404838515,1770611441318,-150.0,0.00042232,30]
[404838516,1770611441327,-150.0,0.00042232,30]
[404838517,1770611441338,-2444.75313959,0.00042237,2]
[404838518,1770611441348,-1079.4,0.0004238,120]
[404838519,1770611441357,-150.0,0.00042434,30]
[404838520,1770611441367,-5000.0,0.00042466,120]
[404838521,1770611441378,-2164.13072908,0.000425,120]
[404838522,1770611441390,-157.19768788,0.000425,120]
[404838523,1770611441400,-1079.4,0.00042573,120]
[404838524,1770611441411,-1000.0,0.0004259,2]
[404838525,1770611441420,-2500.0,0.0004274,7]
[404838526,1770611441429,-462.60584154,0.0004274,10]
[404838527,1770611441439,-1079.4,0.00042766,120]
[404838528,1770611441448,-3295.0486665,0.000428,30]
[404838529,1770611441457,-15165.49423038,0.000428,7]
[404838530,1770611441466,-1300.0,0.000428,15]
[404838531,1770611441475,-200.0,0.000428,15]
[404838532,1770611441484,-250.0,0.00042822,2]
[404838533,1770611441493,-150.0,0.00042838,30]
[404838534,1770611441502,-1300.0,0.000429,15]
[404838535,1770611441511,-200.0,0.000429,15]
[404838536,1770611441519,-259.57383222,0.000429,30]
[404838537,1770611441528,-1079.4,0.00042959,120]
[404838538,1770611441537,-150.0,0.00042973,30]
[404838539,1770611441546,-150.0,0.00042973,30]
[404838540,1770611441555,-456.1643411,0.00042998,30]
[404838541,1770611441564,-152.0,0.00043,120]
[404838542,1770611441572,-1000.0,0.00043,120]
[404838543,1770611441582,-1000.0,0.00043,120]
[404838544,1770611441591,-240.75130676,0.00043,120]
[404838545,1770611441599,-48974.83269297,0.00043,2]
[404838546,1770611441610,-162.46228869,0.00043,30]
[404838547,1770611441619,-695.18135714,0.00043,120]
[404838548,1770611441627,-336.83,0.000431,30]
[404838549,1770611441637,-1405.99823324,0.000431,120]
[404838550,1770611441646,-4019.51630208,0.000431,2]
[404838551,1770611441655,-2292.93388928,0.00043116,2]
[404838552,1770611441663,-1521.40464906,0.0004313,30]
[404838553,1770611441672,-29750.27894321,0.00043142,15]
[404838554,1770611441681,-1079.4,0.00043152,120]
[404838555,1770611441690,-692.2,0.00043189,120]
[404838556,1770611441700,-141726.66314333,0.000432,54]
[404838557,1770611441709,-7814.7,0.000432,2]
[404838558,1770611441718,-1685894.78898075,0.000432,120]
[404838559,1770611441765,-400.74716738,0.000432,120]
[404838560,1770611441923,-150.0,0.00034904,2]
[404838561,1770611441933,-150.0,0.00036649,2]
[404838562,1770611441942,-618.857,0.0004177,2]
[404838563,1770611441952,-811.98896,0.000432,120]
[404838564,1770611441987,-150.0,0.00038482,2]
[404838565,1770611441997,-205.54419727,0.000432,120]
[404838566,1770611442009,-918.22194719,0.000432,120]
[404838567,1770611442026,-1421182.3565534,0.000432,120]
[404838568,1770611442038,-10458.88061352,0.000432,120]
[404838569,1770611442049,-2218.04471527,0.000432,120]
[404838570,1770611442062,-990.88773711,0.000432,120]
[404838578,1770611445077,-966.3271354,0.00040548,2]
[404838579,1770611445210,-33.6728646,0.00040548,2]
[404838580,1770611445220,-46.36579746,0.000431,28]
[404838583,1770611446034,-1868.3,0.000431,28]
[404838584,1770611446143,-508.26559853,0.000431,28]
[404838585,1770611446198,-1353.55588657,0.000431,28]
[404838586,1770611446208,-1255.07800295,0.000432,120]
[404838614,1770611462817,195.0,0.00026507,120]
[404838615,1770611462962,195.0,0.00028305,120]
[404838616,1770611463120,195.0,0.0003392,120]
[404838617,1770611571434,481.05393309,0.00017999,2]
[404838618,1770611571469,267.93972243,0.00017999,2]
[404838619,1770611641071,166.66,0.0003535,30]
[404838620,1770611691288,299.99,0.00033038,30]
[404838621,1770611705542,159.11429298,0.00035518,120]
[404838622,1770611738920,-187.11648452,0.00026507,2]
[404838623,1770611738947,-250.0,0.00026507,2]
[404838624,1770611765890,5457.35994067,0.000356,30]
[404838625,1770611811808,625.55074738,0.00017999,2]
[404838626,1770611811837,22.77046537,0.00017999,2]
[404838628,1770612010569,270.70543795,0.00017999,2]
[404838629,1770612024476,-229.29456205,0.00017999,2]
[404838630,1770612024504,-500.0,0.00017999,2]
[404838631,1770612024532,-500.0,0.00017999,2]
[404838632,1770612024560,-500.0,0.00017999,2]
[404838633,1770612024589,-500.0,0.00017999,2]
[404838634,1770612092323,1658.989,0.00032516,32]
[404838635,1770612092393,178.706,0.00032516,32]
[404838636,1770612218832,1629.86,0.00033038,30]
[404838637,1770612559167,-480.67385401,0.00018216,2]
[404838638,1770612559187,-187.11648452,0.00018216,2]
[404838639,1770612559207,-250.0,0.00019108,2]
[404838640,1770612559228,-300.0,0.00019899,2]
[404838641,1770612559250,-1771.41155072,0.00019899,2]
[404838642,1770612559270,-500.0,0.000199,2]
[404838643,1770612559292,-500.0,0.000199,2]
[404838644,1770612559316,-500.0,0.000199,2]
[404838645,1770612559338,-500.0,0.000199,2]
[404838646,1770612559362,-355.09943675,0.000199,2]
[404838647,1770612632144,-144.90056325,0.000199,2]
[404838648,1770612632154,-401.59477055,0.000199,2]
[404838649,1770612632164,-29.0923449,0.0002,2]
[404838650,1770612632175,-467.3376551,0.0002,2]
[404838651,1770612632185,-117.46189595,0.0002,2]
[404838652,1770612632197,-69.65458857,0.0002,2]
[404838653,1770612632207,-250.0,0.00020037,2]
[404838654,1770612632216,-250.0,0.00020037,2]
[404838656,1770612632226,-1771.41155072,0.00021102,2]
[404838657,1770612632235,-250.0,0.0002189,2]
[404838658,1770612632244,-1771.41155072,0.00022306,2]
[404838659,1770612632253,-445.39606501,0.00022398,2]
[404838660,1770612632268,-387.105,0.00022398,2]
[404838661,1770612632280,-367.49893499,0.00022398,2]
[404838662,1770612632291,-130.05334592,0.00023,2]
[404838663,1770612632308,-29.94665408,0.00023,2]
[404838664,1770612632318,-300.0,0.00023508,2]
[404838665,1770612632327,-1771.41155072,0.00023509,2]
[404838666,1770612632336,-1184.5728722,0.00024443,2]
[404838667,1770612632347,-412.77728069,0.00024443,2]
[404838668,1770612632359,-82.64984711,0.00024443,2]
[404838669,1770612632368,-627.35015289,0.00024712,2]
[404838670,1770612632379,-1144.06139783,0.00024712,2]
[404838671,1770612632390,-420.0,0.00025506,2]
[404838672,1770612632400,-1771.41155072,0.00025916,2]
[404838673,1770612632411,-5005.0,0.00026463,7]
[404838674,1770612632421,-284.55,0.00026665,2]
[404838676,1770612632430,-2351.0,0.00026674,2]
[404838678,1770612632440,-1564.51849216,0.00027119,2]
[404838680,1770612632453,-206.89305856,0.00027119,2]
[404838682,1770612632463,-587.0,0.00027674,2]
[404838684,1770612632473,-6122.61,0.00028951,2]
[404838686,1770612632482,-159.9,0.00028958,2]
[404838687,1770612632492,-893.14,0.0002896,2]